bitfinex/quotes_SOLUSD_20241013
["timestamp","ask_amount","ask_price","bid_price","bid_amount"]
[1728797342975,7.30938358,146.91,146.83,15.0842]
[1728797343180,7.30938358,146.91,146.85,11.40198005]
[1728797343382,7.30938358,146.91,146.86,20.0]
[1728797343971,7.30938358,146.89,146.85,11.40198005]
[1728797344589,7.30938358,146.89,146.84,11.40198005]
[1728797344780,7.30938358,146.89,146.85,11.40198005]
[1728797348707,6.8063,146.93,146.83,15.0842]
[1728797348708,7.30938358,146.91,146.86,12.7636632]
[1728797349082,7.30938358,146.91,146.86,11.40198005]
[1728797351305,7.30938358,146.89,146.85,11.40198005]
[1728797351491,7.30938358,146.89,146.84,31.40198005]
[1728797351811,7.30938358,146.89,146.84,20.0]
[1728797352002,7.30938358,146.89,146.84,31.40198005]
[1728797355887,7.30938358,146.87,146.83,20.0]
[1728797356089,7.30938358,146.87,146.83,11.40198005]
[1728797356299,7.30938358,146.87,146.84,20.0]
[1728797360102,7.30938358,146.87,146.84,12.76390936]
[1728797360302,7.30938358,146.87,146.84,11.40198005]
[1728797361402,7.30938358,146.87,146.8,20.0]
[1728797361602,7.30938358,146.87,146.84,11.40198005]
[1728797362208,7.30938358,146.89,146.84,11.40198005]
[1728797374026,28.4199,146.91,146.8,20.0]
[1728797374027,7.30938358,146.87,146.8,20.0]
[1728797374220,7.30938358,146.87,146.83,20.0]
[1728797376737,7.30938358,146.87,146.83,31.40198005]
[1728797376937,7.30938358,146.87,146.83,11.40198005]
[1728797377234,7.30938358,146.87,146.84,20.0]
[1728797385222,7.30938358,146.87,146.83,11.40198005]
[1728797385440,7.30938358,146.87,146.79,21.9624]
[1728797385441,7.30938358,146.87,146.8,20.0]
[1728797385649,7.30938358,146.87,146.83,11.40198005]
[1728797389743,7.30938358,146.87,146.83,20.0]
[1728797400540,7.30938358,146.85,146.8,20.0]
[1728797402434,7.30938358,146.85,146.8,31.40198005]
[1728797402647,7.30938358,146.85,146.81,12.76410632]
[1728797403731,7.30938358,146.85,146.81,12.76410629]
[1728797404723,7.30938358,146.87,146.83,11.40198005]
[1728797404926,28.42,146.91,146.84,12.76392668]
[1728797404927,7.30938358,146.89,146.84,12.76392668]
[1728797405532,7.30938358,146.87,146.84,12.76392668]
[1728797405730,7.30938358,146.89,146.84,11.40198005]
[1728797405928,7.30938358,146.89,146.83,11.40198005]
[1728797406647,7.30938358,146.87,146.83,11.40198005]
[1728797411867,7.30938358,146.87,146.82,11.40198005]
[1728797412243,7.30938358,146.87,146.83,20.0]
[1728797416966,7.30938358,146.87,146.83,11.40198005]
[1728797419754,7.30938358,146.87,146.83,20.0]
[1728797420062,7.30938358,146.85,146.83,20.0]
[1728797420655,7.30938358,146.85,146.82,21.36205196]
[1728797420857,7.30938358,146.85,146.82,12.76403201]
[1728797421064,7.30938358,146.85,146.83,20.0]
[1728797425181,7.30938358,146.85,146.79,21.9624]
[1728797425373,7.30938358,146.85,146.81,11.40198005]
[1728797425685,7.30938358,146.85,146.82,20.0]
[1728797426691,7.30938358,146.87,146.82,21.36205183]
[1728797426860,7.30938358,146.87,146.83,11.40198005]
[1728797427176,7.30938358,146.89,146.84,21.36192669]
[1728797428873,7.30938358,146.89,146.84,12.76390674]
[1728797431685,7.30938358,146.89,146.84,11.40198005]
[1728797434082,7.30938358,146.87,146.84,11.40198005]
[1728797434286,7.30938358,146.87,146.84,20.0]
[1728797434486,7.30938358,146.87,146.84,21.36186353]
[1728797435885,7.30938358,146.87,146.84,20.0]
[1728797436983,7.30938358,146.87,146.84,21.36186241]
[1728797437173,7.30938358,146.87,146.84,20.0]
[1728797442283,7.30938358,146.87,146.84,11.40198005]
[1728797442490,7.30938358,146.87,146.84,20.0]
[1728797445086,7.30938358,146.87,146.84,21.36185522]
[1728797445291,7.30938358,146.87,146.84,20.0]
[1728797446395,7.30938358,146.87,146.8,24.07223359]
[1728797446685,7.30938358,146.87,146.79,11.40198005]
[1728797446686,7.30938358,146.85,146.79,11.40198005]
[1728797447773,7.30938358,146.85,146.8,20.0]
[1728797448398,7.30938358,146.85,146.8,12.76417955]
[1728797448575,7.30938358,146.85,146.81,20.0]
[1728797448774,7.30938358,146.85,146.82,11.40198005]
[1728797449876,7.30938358,146.85,146.82,12.76406629]
[1728797450396,7.30938358,146.85,146.82,11.40198005]
[1728797451971,7.30938358,146.85,146.76,20.0]
[1728797452175,7.30938358,146.85,146.78,20.0]
[1728797452376,7.30938358,146.85,146.81,20.0]
[1728797458908,7.30938358,146.85,146.78,20.0]
[1728797459099,7.30938358,146.85,146.76,20.0]
[1728797459301,7.30938358,146.85,146.8,20.0]
[1728797461015,7.30938358,146.85,146.81,12.7641432]
[1728797463220,7.30938358,146.85,146.81,11.40198005]
[1728797463705,7.30938358,146.85,146.8,11.40198005]
[1728797463897,7.30938358,146.85,146.81,20.0]
[1728797464510,7.30938358,146.87,146.82,1.36205849]
[1728797464689,7.30938358,146.87,146.81,11.40198005]
[1728797464690,7.30938358,146.85,146.81,11.40198005]
[1728797466324,7.30938358,146.85,146.81,12.76403731]
[1728797467703,7.30938358,146.85,146.81,11.40198005]
[1728797468090,7.30938358,146.85,146.82,1.36205636]
[1728797468296,7.30938358,146.85,146.81,11.40198005]
[1728797468491,7.30938358,146.85,146.82,1.3620561]
[1728797468691,6.8083,146.88,146.82,1.3620561]
[1728797468692,7.30938358,146.87,146.82,1.3620561]
[1728797470016,7.30938358,146.84,146.75,19.17565838]
[1728797470210,7.30938358,146.84,146.79,11.40198005]
[1728797470413,7.30938358,146.84,146.8,1.36216779]
[1728797471396,7.30938358,146.84,146.8,21.36216779]
[1728797471998,7.30938358,146.84,146.8,20.0]
[1728797473705,7.30938358,146.84,146.8,21.36218501]
[1728797474423,7.30938358,146.84,146.8,32.76416506]
[1728797474624,7.30938358,146.84,146.81,11.40198005]
[1728797474811,7.30938358,146.84,146.8,11.40198005]
[1728797475003,7.30938358,146.84,146.81,1.36214714]
[1728797475202,7.30938358,146.84,146.8,11.40198005]
[1728797476222,7.30938358,146.84,146.79,11.40198005]
[1728797482106,7.30938358,146.84,146.8,1.36218133]
[1728797482320,7.30938358,146.86,146.81,11.40198005]
[1728797484230,7.30938358,146.86,146.8,20.0]
[1728797485911,7.30938358,146.86,146.8,31.40198005]
[1728797490746,7.30938358,146.86,146.79,11.40198005]
[1728797491039,7.30938358,146.86,146.8,20.0]
[1728797492718,7.30938358,146.86,146.78,20.0]
[1728797492916,7.30938358,146.86,146.8,20.0]
[1728797493120,7.30938358,146.86,146.78,20.0]
[1728797493314,14.11868358,146.86,146.8,20.0]
[1728797494211,7.30938358,146.86,146.8,20.0]
[1728797494611,7.30938358,146.84,146.8,20.0]
[1728797495423,7.30938358,146.86,146.81,12.76412308]
[1728797495814,7.30938358,146.86,146.81,11.40198005]
[1728797496249,7.30938358,146.86,146.78,20.0]
[1728797496617,7.30938358,146.86,146.81,20.0]
[1728797497724,7.30938358,146.86,146.78,20.0]
[1728797497930,7.30938358,146.86,146.79,11.40198005]
[1728797498121,7.30938358,146.86,146.8,20.0]
[1728797502652,7.30938358,146.86,146.81,11.40198005]
[1728797503332,7.30938358,146.86,146.79,11.40198005]
[1728797503713,7.30938358,146.86,146.8,20.0]
[1728797504315,7.30938358,146.86,146.78,20.0]
[1728797504544,7.30938358,146.86,146.8,20.0]
[1728797508645,7.30938358,146.86,146.81,11.40198005]
[1728797508829,7.30938358,146.86,146.82,11.40198005]
[1728797510249,7.30938358,146.86,146.81,20.0]
[1728797510638,7.30938358,146.86,146.77,21.9609]
[1728797510639,7.30938358,146.84,146.79,20.0]
[1728797511449,7.30938358,146.84,146.78,20.0]
[1728797511631,7.30938358,146.82,146.77,15.7378]
[1728797511953,7.30938358,146.82,146.77,11.40198005]
[1728797512241,7.30938358,146.82,146.74,25.93047138]
[1728797512242,7.30938358,146.82,146.75,11.40198005]
[1728797512447,7.30938358,146.8,146.75,11.40198005]
[1728797513453,7.30938358,146.8,146.76,20.0]
[1728797514446,7.30938358,146.8,146.75,20.0]
[1728797516547,7.30938358,146.8,146.75,32.76460745]
[1728797518926,7.30938358,146.8,146.75,21.3626274]
[1728797519236,7.30938358,146.8,146.75,20.0]
[1728797519436,7.30938358,146.8,146.75,31.40198005]
[1728797525054,7.30938358,146.8,146.75,20.0]
[1728797525264,7.30938358,146.8,146.71,23.92210159]
[1728797525436,7.30938358,146.8,146.75,20.0]
[1728797525749,7.30938358,146.8,146.75,32.76460624]
[1728797526129,7.30938358,146.8,146.75,31.40198005]
[1728797526549,7.30938358,146.8,146.76,12.76460607]
[1728797527043,7.30938358,146.8,146.76,11.40198005]
[1728797527937,7.30938358,146.8,146.76,20.0]
[1728797532856,7.30938358,146.8,146.74,20.0]
[1728797540865,7.30938358,146.8,146.75,1.36262898]
[1728797544342,7.30938358,146.8,146.74,20.0]
[1728797544580,7.30938358,146.8,146.75,1.36263895]
[1728797547365,7.30938358,146.8,146.75,12.764619]
[1728797547670,7.30938358,146.8,146.75,11.40198005]
[1728797547962,7.30938358,146.8,146.73,11.40198005]
[1728797548343,7.30938358,146.8,146.74,20.0]
[1728797556766,22.4013,146.81,146.74,20.0]
[1728797556767,7.30938358,146.78,146.74,20.0]
[1728797556954,7.30938358,146.78,146.74,21.36275374]
[1728797558174,7.30938358,146.78,146.74,20.0]
[1728797558970,7.30938358,146.78,146.74,21.36275455]
[1728797565051,7.30938358,146.78,146.74,20.0]
[1728797565452,7.30938358,146.78,146.73,11.40198005]
[1728797565650,7.30938358,146.78,146.74,20.0]
[1728797569784,7.30938358,146.78,146.73,11.40198005]
[1728797573162,7.30938358,146.78,146.74,21.36281091]
[1728797574052,7.30938358,146.76,146.69,3.93215209]
[1728797574350,7.30938358,146.78,146.73,11.40198005]
[1728797574660,7.30938358,146.78,146.74,1.36276328]
[1728797576161,7.30938358,146.78,146.73,11.40198005]
[1728797577387,7.30938358,146.78,146.74,1.36277159]
[1728797578566,7.30938358,146.78,146.73,11.40198005]
[1728797581073,7.30938358,146.78,146.72,20.0]
[1728797583288,7.30938358,146.78,146.73,11.40198005]
[1728797584165,7.30938358,146.78,146.74,12.76481087]
[1728797586165,7.30938358,146.78,146.73,11.40198005]
[1728797586392,7.30938358,146.78,146.73,20.0]
[1728797588891,7.30938358,146.78,146.72,11.40198005]
[1728797589289,7.30938358,146.78,146.73,20.0]
[1728797593597,7.30938358,146.78,146.73,21.36279449]
[1728797594902,7.30938358,146.78,146.73,20.0]
[1728797595796,7.30938358,146.78,146.7,23.92637965]
[1728797595990,7.30938358,146.78,146.73,11.40198005]
[1728797596578,7.30938358,146.8,146.75,11.40198005]
[1728797596790,7.30938358,146.8,146.76,1.36266318]
[1728797597699,7.30938358,146.8,146.75,11.40198005]
[1728797603400,7.30938358,146.8,146.77,11.40198005]
[1728797608708,7.30938358,146.8,146.74,15.8916]
[1728797608883,7.30938358,146.8,146.75,11.40198005]
[1728797609604,7.30938358,146.78,146.72,20.0]
[1728797609788,7.30938358,146.78,146.72,31.40198005]
[1728797612287,7.30938358,146.78,146.74,11.40198005]
[1728797612810,7.30938358,146.78,146.75,1.36271193]
[1728797613206,7.30938358,146.8,146.75,1.36271193]
[1728797613511,7.30938358,146.78,146.75,1.36271193]
[1728797613895,7.30938358,146.8,146.75,1.36271193]
[1728797615400,7.15938358,146.8,146.75,1.36271193]
[1728797616709,7.15938358,146.8,146.75,11.40198005]
[1728797632807,7.15938358,146.8,146.76,1.36263054]
[1728797633817,7.15938358,146.8,146.75,11.40198005]
[1728797649835,7.15938358,146.78,146.74,20.0]
[1728797652132,7.15938358,146.78,146.72,20.0]
[1728797652327,7.15938358,146.76,146.71,20.0]
[1728797652522,7.15938358,146.76,146.71,31.40198005]
[1728797653412,7.15938358,146.74,146.67,6.1728]
[1728797653618,7.15938358,146.74,146.68,11.40198005]
[1728797654013,7.15938358,146.74,146.67,6.1728]
[1728797654213,7.15938358,146.74,146.68,11.40198005]
[1728797655329,7.15938358,146.74,146.69,20.0]
[1728797656947,7.15938358,146.74,146.69,11.40198005]
[1728797657632,7.15938358,146.74,146.68,20.0]
[1728797657944,7.15938358,146.74,146.68,31.40198005]
[1728797659713,7.15938358,146.74,146.69,11.40198005]
[1728797660026,7.15938358,146.74,146.7,12.76511654]
[1728797660930,7.15938358,146.74,146.7,11.40198005]
[1728797664336,7.15938358,146.74,146.68,20.0]
[1728797664645,7.15938358,146.74,146.69,11.40198005]
[1728797666224,7.15938358,146.74,146.7,12.76510308]
[1728797666840,7.15938358,146.76,146.71,11.40198005]
[1728797667021,7.15938358,146.76,146.72,1.36300568]
[1728797667238,7.15938358,146.76,146.68,20.0]
[1728797667444,7.15938358,146.76,146.71,11.40198005]
[1728797671318,7.15938358,146.76,146.72,1.36301081]
[1728797671519,13.69688358,146.78,146.73,12.76496087]
[1728797671724,13.69688358,146.78,146.74,11.40198005]
[1728797672454,7.15938358,146.78,146.74,11.40198005]
[1728797673629,22.67738358,146.8,146.75,12.76477426]
[1728797678660,22.67738358,146.8,146.75,11.40198005]
[1728797678863,7.15938358,146.8,146.76,12.76467801]
[1728797679258,7.15938358,146.8,146.76,11.40198005]
[1728797685179,13.56528358,146.82,146.77,12.76456225]
[1728797685857,7.15938358,146.8,146.77,12.76456225]
[1728797686058,7.15938358,146.8,146.77,11.40198005]
[1728797688167,34.88718524,146.79,146.63,6.83]
[1728797688370,9.15938358,146.8,146.76,11.40198005]
[1728797689055,9.15938358,146.8,146.75,11.40198005]
[1728797689486,2.0,146.78,146.73,11.40198005]
[1728797689678,2.0,146.78,146.74,11.40198005]
[1728797690372,9.15938358,146.8,146.76,11.40198005]
[1728797691287,9.15938358,146.8,146.75,11.40198005]
[1728797696877,2.0,146.78,146.75,20.0]
[1728797700690,2.0,146.78,146.74,11.40198005]
[1728797710077,2.0,146.78,146.75,1.36266559]
[1728797710484,9.15938358,146.8,146.76,11.40198005]
[1728797714209,9.15938358,146.8,146.74,11.40198005]
[1728797714704,9.15938358,146.8,146.75,1.36256843]
[1728797714907,9.15938358,146.8,146.76,11.40198005]
[1728797715118,9.15938358,146.8,146.77,1.36250068]
[1728797715703,2.0,146.8,146.77,1.36250068]
[1728797716411,2.0,146.8,146.78,11.40198005]
[1728797716784,9.15938358,146.82,146.78,11.40198005]
[1728797716989,9.15938358,146.82,146.79,1.36241473]
[1728797719689,9.15938358,146.82,146.78,11.40198005]
[1728797720393,9.15938358,146.82,146.77,11.40198005]
[1728797720794,9.15938358,146.82,146.76,11.40198005]
[1728797721096,2.0,146.8,146.77,20.0]
[1728797747936,6.8124,146.79,146.73,20.0]
[1728797748228,6.8124,146.79,146.75,20.0]
[1728797748408,9.15938358,146.8,146.75,20.0]
[1728797748611,15.97148358,146.8,146.75,20.0]
[1728797749026,15.97148358,146.8,146.75,11.40198005]
[1728797750517,2.0,146.77,146.73,31.40198005]
[1728797751810,2.0,146.77,146.73,20.0]
[1728797754631,2.0,146.77,146.74,11.40198005]
[1728797754807,2.0,146.77,146.74,12.76471447]
[1728797755839,2.0,146.77,146.74,11.40198005]
[1728797756635,2.0,146.77,146.73,11.40198005]
[1728797756936,2.0,146.77,146.69,23.94823451]
[1728797757119,2.0,146.77,146.73,11.40198005]
[1728797760046,2.0,146.77,146.74,11.40198005]
[1728797760250,2.0,146.77,146.74,12.76481328]
[1728797761527,2.0,146.77,146.7,20.0]
[1728797761732,2.0,146.77,146.73,11.40198005]
[1728797764427,2.0,146.77,146.69,23.94823451]
[1728797764627,2.0,146.77,146.72,11.40198005]
[1728797764844,2.0,146.77,146.69,20.0]
[1728797765041,2.0,146.77,146.72,11.40198005]
[1728797765248,2.0,146.75,146.72,11.40198005]
[1728797765753,2.0,146.75,146.73,12.76486223]
[1728797765957,2.0,146.75,146.73,11.40198005]
[1728797766244,2.0,146.77,146.73,11.40198005]
[1728797767954,2.0,146.77,146.74,12.76484861]
[1728797768848,2.0,146.77,146.74,11.40198005]
[1728797769530,2.0,146.77,146.73,11.40198005]
[1728797772247,17.0084,146.79,146.76,11.40198005]
[1728797772449,2.0,146.79,146.76,11.40198005]
[1728797772634,2.0,146.79,146.77,12.76458524]
[1728797772837,2.0,146.79,146.77,11.40198005]
[1728797775557,2.0,146.79,146.76,11.40198005]
[1728797781157,2.0,146.79,146.77,11.40198005]
[1728797783451,2.0,146.81,146.77,11.40198005]
[1728797784362,2.0,146.79,146.77,11.40198005]
[1728797784545,2.0,146.79,146.76,11.40198005]
[1728797790252,2.0,146.79,146.75,20.0]
[1728797790454,2.0,146.79,146.74,11.40198005]
[1728797793569,2.0,146.77,146.74,11.40198005]
[1728797802469,2.0,146.77,146.75,11.40198005]
[1728797804567,2.0,146.77,146.7,20.0]
[1728797804975,2.0,146.77,146.74,20.0]
[1728797808761,2.0,146.77,146.75,11.40198005]
[1728797812186,2.0,146.77,146.71,1.36273663]
[1728797812391,2.0,146.77,146.74,11.40198005]
[1728797834999,2.0,146.75,146.69,15.8739]
[1728797835212,2.0,146.75,146.73,11.40198005]
[1728797835516,29.73858358,146.78,146.73,11.40198005]
[1728797835517,2.0,146.77,146.73,11.40198005]
[1728797837109,2.0,146.77,146.74,1.36282834]
[1728797840786,2.0,146.77,146.73,11.40198005]
[1728797849817,2.0,146.77,146.7,20.0]
[1728797850026,2.0,146.77,146.73,11.40198005]
[1728797853416,2.0,146.77,146.75,11.40198005]
[1728797855298,2.0,146.77,146.71,20.0]
[1728797855498,2.0,146.77,146.71,31.40198005]
[1728797855722,2.0,146.77,146.73,11.40198005]
[1728797862629,2.0,146.77,146.74,1.36283434]
[1728797863729,2.0,146.77,146.73,11.40198005]
[1728797866832,2.0,146.77,146.73,20.0]
[1728797871916,2.0,146.77,146.73,11.40198005]
[1728797875247,2.0,146.77,146.75,11.40198005]
[1728797878556,2.0,146.77,146.74,11.40198005]
[1728797879852,2.0,146.77,146.73,11.40198005]
[1728797885949,2.0,146.79,146.75,11.40198005]
[1728797889069,2.0,146.79,146.74,11.40198005]
[1728797897588,2.0,146.81,146.77,11.40198005]
[1728797897781,2.0,146.81,146.8,11.40198005]
[1728797903391,2.0,146.83,146.8,11.40198005]
[1728797903693,2.0,146.85,146.82,11.40198005]
[1728797904004,2.0,146.85,146.84,11.40198005]
[1728797904293,2.0,146.85,146.83,11.40198005]
[1728797918813,2.0,146.85,146.78,3.98317573]
[1728797918814,2.0,146.85,146.82,11.40198005]
[1728797922713,2.0,146.88,146.83,11.40198005]
[1728797922890,2.0,146.88,146.86,11.40198005]
[1728797924814,2.0,146.88,146.84,11.40198005]
[1728797927107,2.0,146.86,146.84,11.40198005]
[1728797933029,2.0,146.86,146.78,43.776884]
[1728797933235,2.0,146.84,146.82,11.40198005]
[1728797934243,2.0,146.84,146.82,20.0]
[1728797935344,2.0,146.84,146.81,11.40198005]
[1728797936132,2.0,146.82,146.81,11.40198005]
[1728797936342,2.0,146.82,146.8,11.40198005]
[1728797937017,2.0,146.82,146.79,11.40198005]
[1728797937337,2.0,146.82,146.78,11.40198005]
[1728797938647,2.0,146.8,146.77,11.40198005]
[1728797938825,2.0,146.8,146.78,11.40198005]
[1728797945248,2.0,146.8,146.74,43.776884]
[1728797945463,2.0,146.8,146.78,11.40198005]
[1728797948729,2.0,146.78,146.74,20.0]
[1728797948918,2.0,146.78,146.75,11.40198005]
[1728797949324,2.0,146.78,146.76,20.0]
[1728797950146,2.0,146.78,146.69,15.8406]
[1728797950347,2.0,146.78,146.74,11.40198005]
[1728797951454,2.0,146.78,146.75,11.40198005]
[1728797955043,2.0,146.76,146.72,23.776884]
[1728797955236,2.0,146.76,146.75,20.0]
[1728797955559,7.15938358,146.8,146.75,31.40198005]
[1728797955560,2.0,146.78,146.75,31.40198005]
[1728797956042,2.0,146.78,146.75,11.40198005]
[1728797963954,2.0,146.78,146.76,1.36262164]
[1728797964135,2.0,146.78,146.75,11.40198005]
[1728797964337,2.0,146.78,146.76,1.36262859]
[1728797965071,2.0,146.78,146.75,11.40198005]
[1728797965490,2.0,146.8,146.76,1.36262897]
[1728797965784,2.0,146.8,146.76,21.36262897]
[1728797966286,2.0,146.8,146.77,11.40198005]
[1728797968054,2.0,146.8,146.78,31.40198005]
[1728797968587,2.0,146.82,146.78,31.40198005]
[1728797969189,2.0,146.82,146.79,11.40198005]
[1728797975505,2.0,146.82,146.8,11.40198005]
[1728797976903,2.0,146.84,146.81,11.40198005]
[1728797981400,2.0,146.84,146.82,11.40198005]
[1728797986008,2.0,146.84,146.82,11.40198005]
[1728797990009,2.0,146.84,146.81,11.40198005]
[1728797998409,2.0,146.84,146.82,11.40198005]
[1728798008646,2.0,146.84,146.8,23.776884]
[1728798008945,2.0,146.84,146.81,11.40198005]
[1728798021966,2.0,146.84,146.79,20.0]
[1728798022142,2.0,146.81,146.79,31.40198005]
[1728798022662,2.0,146.81,146.8,11.40198005]
[1728798022849,2.0,146.81,146.8,31.40198005]
[1728798023047,2.0,146.81,146.8,20.0]
[1728798023253,2.0,146.81,146.8,31.40198005]
[1728798025269,2.0,146.81,146.8,20.0]
[1728798027451,2.0,146.83,146.8,20.0]
[1728798037074,2.0,146.81,146.8,20.0]
[1728798044810,2.0,146.83,146.8,20.0]
[1728798045010,2.0,146.83,146.8,21.36226565]
[1728798045912,2.0,146.83,146.8,20.0]
[1728798048098,2.0,146.83,146.8,21.36223613]
[1728798049906,2.0,146.83,146.81,11.40198005]
[1728798061849,2.0,146.83,146.78,20.0]
[1728798062137,2.0,146.81,146.8,20.0]
[1728798062710,2.0,146.81,146.79,20.0]
[1728798063340,2.0,146.81,146.8,11.40198005]
[1728798063849,2.0,146.81,146.8,31.40198005]
[1728798069658,2.0,146.81,146.8,20.0]
[1728798069859,2.0,146.83,146.8,20.0]
[1728798073031,2.0,146.81,146.77,3.98316535]
[1728798073252,2.0,146.81,146.8,20.0]
[1728798077557,2.0,146.83,146.8,20.0]
[1728798078146,2.0,146.83,146.8,21.36220732]
[1728798078357,2.0,146.83,146.8,20.0]
[1728798081370,2.0,146.83,146.81,11.40198005]
[1728798084459,2.0,146.83,146.79,31.40198005]
[1728798103784,2.0,146.81,146.79,20.0]
[1728798106091,2.0,146.81,146.75,20.0]
[1728798106292,2.0,146.81,146.78,20.0]
[1728798107092,2.0,146.79,146.78,20.0]
[1728798108480,2.0,146.79,146.75,20.0]
[1728798108680,2.0,146.79,146.78,11.40198005]
[1728798108989,2.0,146.79,146.78,31.40198005]
[1728798112091,2.0,146.81,146.79,20.0]
[1728798112285,2.0,146.81,146.79,31.40198005]
[1728798112885,2.0,146.81,146.8,11.40198005]
[1728798113676,2.0,146.81,146.8,31.40198005]
[1728798124120,17.5156,146.85,146.81,20.0]
[1728798124321,17.5156,146.85,146.83,11.40198005]
[1728798126118,17.5156,146.85,146.81,20.0]
[1728798126119,17.5156,146.85,146.82,11.40198005]
[1728798126825,2.0,146.85,146.82,11.40198005]
[1728798128415,2.0,146.85,146.83,11.40198005]
[1728798128602,2.0,146.85,146.83,12.76398371]
[1728798129009,2.0,146.85,146.83,11.40198005]
[1728798133500,2.0,146.87,146.84,11.40198005]
[1728798133733,2.0,146.87,146.86,31.40198005]
[1728798134319,2.0,146.89,146.87,20.0]
[1728798134626,2.0,146.89,146.88,11.40198005]
[1728798135716,2.0,146.89,146.87,20.0]
[1728798135922,2.0,146.89,146.86,11.40198005]
[1728798136108,2.0,146.89,146.87,20.0]
[1728798137016,2.0,146.89,146.87,11.40198005]
[1728798137807,2.0,146.89,146.88,11.40198005]
[1728798147439,2.0,146.89,146.87,11.40198005]
[1728798154148,2.0,146.87,146.83,20.0]
[1728798154349,2.0,146.87,146.86,31.40198005]
[1728798155331,2.0,146.89,146.87,20.0]
[1728798157646,2.0,146.89,146.88,11.40198005]
[1728798158447,2.0,146.89,146.87,20.0]
[1728798158649,2.0,146.87,146.86,11.40198005]
[1728798158832,2.0,146.87,146.86,31.40198005]
[1728798172347,2.0,146.89,146.87,20.0]
[1728798172540,2.0,146.89,146.88,11.40198005]
[1728798188881,2.0,146.89,146.88,31.40198005]
[1728798240243,2.0,146.89,146.86,3.96156536]
[1728798240418,2.0,146.89,146.88,31.40198005]
[1728798247637,2.0,146.89,146.85,20.0]
[1728798247843,2.0,146.89,146.88,31.40198005]
[1728798249119,2.0,146.89,146.85,20.0]
[1728798249435,2.0,146.89,146.88,31.40198005]
[1728798249620,2.0,146.89,146.88,20.0]
[1728798249814,2.0,146.87,146.84,3.89650359]
[1728798250052,2.0,146.87,146.77,6.0007]
[1728798250053,2.0,146.87,146.86,11.40198005]
[1728798251042,6.0463,146.9,146.86,11.40198005]
[1728798251043,2.0,146.89,146.86,11.40198005]
[1728798251247,2.0,146.89,146.87,20.0]
[1728798252520,2.0,146.86,146.82,23.776884]
[1728798252739,2.0,146.86,146.85,31.40198005]
[1728798253042,2.0,146.86,146.79,7.1223789]
[1728798253217,2.0,146.86,146.84,11.40198005]
[1728798254231,2.0,146.86,146.85,20.0]
[1728798256851,2.0,146.86,146.85,31.40198005]
[1728798261322,2.0,146.86,146.81,23.776884]
[1728798261642,2.0,146.86,146.85,20.0]
[1728798263134,2.0,146.86,146.82,20.0]
[1728798263336,2.0,146.86,146.85,20.0]
[1728798272030,2.0,146.84,146.82,31.40198005]
[1728798273335,2.0,146.84,146.83,11.40198005]
[1728798274748,2.0,146.84,146.83,31.40198005]
[1728798279733,2.0,146.84,146.79,23.9198496]
[1728798279932,2.0,146.84,146.82,20.0]
[1728798280159,2.0,146.84,146.82,21.36202707]
[1728798280360,2.0,146.84,146.82,20.0]
[1728798285162,2.0,146.82,146.81,20.0]
[1728798285469,2.0,146.82,146.78,3.91379515]
[1728798285470,2.0,146.82,146.79,11.40198005]
[1728798286169,2.0,146.8,146.79,11.40198005]
[1728798286963,2.0,146.8,146.79,31.40198005]
[1728798287758,2.0,146.8,146.77,3.88256228]
[1728798288063,2.0,146.8,146.78,20.0]
[1728798289531,2.0,146.8,146.77,11.40198005]
[1728798289737,2.0,146.8,146.78,20.0]
[1728798293453,2.0,146.8,146.78,11.40198005]
[1728798293847,2.0,146.8,146.79,20.0]
[1728798296262,2.0,146.8,146.76,20.0]
[1728798296468,2.0,146.8,146.79,20.0]
[1728798297554,2.0,146.8,146.79,11.40198005]
[1728798297754,2.0,146.8,146.79,31.40198005]
[1728798301254,2.0,146.8,146.79,20.0]